[Event "10th Cesme Open-A 2024"]
[Site "Cesme"]
[Date "2024.06.24"]
[Round "2"]
[White "Zakirov, Musa"]
[Black "Rasulov, Vugar"]
[Result "0-1"]
[ECO "B33"]
[WhiteElo "2112"]
[BlackElo "2557"]
[Annotator "TA"]
[PlyCount "112"]
[EventDate "2024.06.23"]
[EventType "swiss"]
[EventCountry "TUR"]
[SourceTitle "playchess.com"]
[Source "ChessBase"]
[SourceQuality "1"]
[TimeControl "5400+30"]

{[%evp 15,112,41,53,0,0,0,0,0,0,0,0,0,0,0,0,0,0,0,0,-35,0,0,0,-4,0,5,19,0,26,19,17,26,38,26,29,29,27,40,49,18,42,27,22,0,14,10,28,8,10,12,10,0,33,8,63,0,0,0,0,0,0,0,0,0,0,-11,-8,-15,-16,-96,-11,-11,-11,-11,-12,-12,-12,-8,-8,-10,-47,-47,0,0,0,0,0,0,0,-485,-8,-29975,-29976,-29974,-29973,-29971,-51,-2109,-1818]} 1. e4 {[%emt 0:01:00]} c5 {[%emt 0:01:00]} 2. Nf3 {[%emt 0:00:30]} Nc6 {[%emt 0:00:30]} 3. d4 {[%emt 0:00:00]} cxd4 {[%emt 0:00:00]} 4. Nxd4 {[%emt 0:00:00]} Qb6 {[%emt 0:00:00]} 5. Nb3 {[%emt 0:08:30]} Nf6 {[%emt 0:00:00]} 6. Nc3 {[%emt 0:07:30]} e6 {[%emt 0:00:00]} 7. Bd3 {[%emt 0:03:30]} a6 {[%emt 0:00:30]} 8. Be3 {[%emt 0:02:30]} Qc7 {[%emt 0:00:00]} 9. Na4 {[%emt 0:01:30]} (9. O-O $14) 9... b5 $11 {[%emt 0:05:00]} 10. Nb6 {[%emt 0:00:30]} Rb8 {[%emt 0:00:30]} 11. Nxc8 {[%emt 0:02:30] The position is equal.} Rxc8 {[%emt 0:00:30]} 12. O-O {[%emt 0:04:30]} d5 {[%emt 0:01:30]} 13. exd5 {[%emt 0:05:30]} Nxd5 {[%emt 0:00:30]} 14. a4 {[%emt 0:05:30]} Bd6 {[%emt 0:03:30]} 15. axb5 {[%emt 0:04:30]} axb5 {[%emt 0:00:30]} 16. Bxb5 {[%emt 0:00:00] This pair of bishops is nice.} O-O {[%emt 0:00:00]} 17. Bxc6 {[%emt 0:05:00]} Nxe3 {[%emt 0:00:00]} 18. fxe3 {[%emt 0:00:30]} Qxc6 {[%emt 0:00:00]} 19. Nd4 {[%emt 0:02:30]} Qb6 {[%emt 0:01:00][%cal Og7g6]} 20. Rb1 {[%emt 0:00:30]} g6 {[%emt 0:00:30]} 21. c3 {[%emt 0:05:30]} Qc7 {[%emt 0:01:30]} 22. h3 {[%emt 0:01:30]} Qc5 {[%emt 0:00:30]} 23. Kh1 {[%emt 0:04:30]} Bb8 {[%emt 0:05:30]} 24. Qe2 {[%emt 0:02:30]} e5 {[%cal Be6e5,Be5e4][%mdl 32]} 25. Nf3 e4 {[%cal Oc5c7]} 26. Nd4 {[%emt 0:01:00]} h5 {[%emt 0:04:30]} 27. Qf2 {[%emt 0:01:30]} Qg5 {[%emt 0:00:30]} 28. Ne2 {[%emt 0:01:30]} Rcd8 {[%emt 0:01:30]} 29. Rbd1 {[%emt 0:01:30] Inhibits Rd2.} Qe5 {[%emt 0:00:30]} 30. g3 {[%emt 0:02:30] Threatens to win with Rxd8.} Rd6 {[%emt 0:01:30]} (30... Qe6 {is more complex.} 31. Kg2 Rd3 32. Rxd3 exd3 33. Nd4 Qb6) 31. Rxd6 {[%emt 0:02:30]} Qxd6 {[%emt 0:00:30]} 32. Nf4 {[%emt 0:01:30]} Qd7 {[%emt 0:00:30]} 33. Qg2 {[%emt 0:03:30]} (33. Nxg6 {feels hotter.} Qxh3+ 34. Kg1 Bxg3 35. Ne7+) 33... Re8 {[%emt 0:00:30]} 34. c4 {[%emt 0:01:30]} Kg7 {[%emt 0:03:30]} (34... Bxf4 $11 35. gxf4 Qd3) 35. Rc1 {[%emt 0:03:32]} ({Better is} 35. b4 $14) 35... h4 {[%emt 0:02:30]} 36. c5 {[%emt 0:02:19]} Bc7 {[%emt 0:04:30]} 37. c6 {[%emt 0:02:27]} Qf5 {[%emt 0:00:30]} 38. g4 {[%emt 0:01:37]} Qb5 {[%emt 0:02:30]} 39. Qe2 {[%emt 0:00:39]} Qb3 {[%emt 0:02:30]} 40. Qf2 {[%emt 0:07:35]} Be5 {[%emt 0:02:30]} 41. Ng2 {[%emt 0:02:08]} Rd8 {[%emt 0:02:30] Threatening ...g5.} 42. Nxh4 {[%emt 0:01:41] [#]} (42. Nf4 $11) 42... Rh8 {[%emt 0:00:30] Black is more active.} (42... Rd1+ $1 $17 43. Rxd1 Qxd1+ 44. Kg2 Qc1) 43. c7 $1 {[%emt 0:00:38]} Rc8 {[%emt 0:00:30]} (43... Bxb2 $2 44. Rb1 (44. c8=Q Rxc8 45. Rxc8 Qd1+ 46. Qg1 Qd5 $18) (44. c8=R Bxc1 45. Rxc1 Rd8 $18) 44... Rc8 45. Qxb2+ $18 (45. Rxb2 Qd1+ 46. Kh2 Rxc7 $18)) 44. Ng2 {[%emt 0:00:38]} (44. Rc5 {looks sharper.} Bd6 45. Rc1 Rxc7 46. Rxc7 Bxc7 47. Ng2) 44... Rxc7 {[%emt 0:00:30]} 45. Rxc7 {[%emt 0:00:48]} Bxc7 {[%emt 0:00:30][%mdl 4096] Endgame. KQB-KQN} 46. Nf4 {[%emt 0:00:30]} Bb6 {[%emt 0:00:30]} 47. Ng2 {[%emt 0:01:39]} Qd1+ {[%emt 0:00:30]} 48. Qe1 $1 {[%emt 0:00:30]} Qf3 {[%emt 0:00:00]} (48... Qxe1+ $15 49. Nxe1 Bxe3) 49. Qc3+ {[%emt 0:00:15]} Kh7 {[%emt 0:00:00]} 50. Kg1 {[%emt 0:00:07]} Ba7 {[%emt 0:00:30]} 51. Qb3 {[%emt 0:00:46]} Bd4 {[%emt 0:01:30]} (51... Qxh3 $2 52. Qxf7+ Kh8 53. Qf8+ (53. Qxa7 Qxg4 54. Qd4+ Kg8 $18) (53. Qxg6 Bxe3+ 54. Nxe3 Qh1+ 55. Kxh1 $11) 53... Kh7 54. Qe7+ Kh8 55. Qxa7 $18) 52. Qa3 $2 {[%emt 0:00:38][%mdl 8192]} (52. Qc2 $11 Bxe3+ 53. Nxe3 Qxe3+ 54. Qf2) 52... Be5 $2 {[%emt 0:00:30]} (52... Qd1+ $19 53. Kf2 Be5) 53. Qc5 $2 {[%emt 0:00:32][%mdl 8192] [#]} (53. Qb3 $11) 53... Qd1+ $1 {[%emt 0:00:30]} (53... Bxb2 54. Qd5 $11) 54. Kf2 {[%emt 0:00:30]} Bh2 {[%emt 0:00:00]} (54... Bxb2 55. Qe7 $11) 55. Nf4 {[%emt 0:00:35]} Qg1+ {[%emt 0:00:00]} (55... Bg1+ $142 56. Kg2 Qe1 57. Qc2 Bxe3 (57... Qxe3 58. Nd5 $11) 58. Ne2 Qf2+ 59. Kh1 Bf4 60. Nxf4 Qxc2 61. Ng2 f5 (61... Qxb2 {gets mated.} 62. Kg1 Qd4+ 63. Kf1 e3 64. Nxe3 Qxe3 65. g5 Kg7 66. Kg2 f6 67. h4 f5 68. Kf1 f4 69. h5 f3 70. h6+ Kf7 71. h7 Qe2+ 72. Kg1 Qg2#) 62. gxf5 gxf5 63. Kg1 Qd2 (63... Qxb2 64. h4 Qd2 65. Kh2 Qf2 66. Kh3 e3 67. Nxe3 Qxe3+ 68. Kh2 Qf2+ 69. Kh1 f4 70. h5 f3 71. h6 Qg2#) 64. h4 f4 (64... Qxb2 {leads to mate.} 65. h5 Kh6 66. Kf1 Qd2 67. Nh4 Kxh5 68. Nxf5 Kg4 69. Kg1 Kxf5 70. Kf1 Kg4 71. Kg1 Kf3 72. Kh1 Qg2#) 65. h5 f3 (65... Qxb2 66. Nxf4 Qc1+ 67. Kf2 Qxf4+ 68. Ke2 e3 69. Kd3 Kh6 70. Ke2 Qe4 71. Kd1 Qg2 72. Ke1 Qf2+ 73. Kd1 Qd2#) 66. Nh4 Qe1+ (66... Qxb2 67. h6 Qe2 68. Kh1 f2 69. Kh2 f1=Q+ 70. Kg3 Qff2+ 71. Kh3 Qh2#) 67. Kh2 Qxh4+ 68. Kg1 Qg3+ (68... Qxh5 69. Kf2 Qh2+ 70. Ke3 f2 71. Ke2 f1=Q+ 72. Kxf1 e3 73. Ke1 Qf2+ 74. Kd1 Qd2#) 69. Kf1 Qg2+ 70. Ke1 Qe2#) 56. Ke2 $19 {[%emt 0:00:30] Hoping for Qf8.} Bxf4 {[%emt 0:00:30] Weighted Error Value: White=0.35/Black=0.30.  Loses game:     	White=2     	---        Missed win:     	---       	Black=1      Mistake:       	White=2     	Black=3      Inaccurate:     	White=2     	Black=3      OK:         	White=16    	Black=19     Best:        	White=1     	Black=1      Strong:       	White=2     	Black=1} 0-1

[Event "10th Cesme Open-A 2024"]
[Site "Cesme"]
[Date "2024.06.24"]
[Round "2"]
[White "Isgenderova, Hayale"]
[Black "Bernadskiy, Vitaliy"]
[Result "0-1"]
[ECO "B30"]
[WhiteElo "2103"]
[BlackElo "2563"]
[Annotator "TA"]
[PlyCount "68"]
[EventDate "2024.06.23"]
[EventType "swiss"]
[EventCountry "TUR"]
[SourceTitle "playchess.com"]
[Source "ChessBase"]
[SourceQuality "1"]
[TimeControl "5400+30"]

{[%evp 11,68,0,0,-18,-12,-33,-38,-43,-19,-21,-20,-26,-5,-25,0,0,0,-6,-8,-20,-13,-66,-7,-75,-79,-67,-22,-24,-25,-28,-4,-23,-2,-22,9,-58,0,-121,-125,-118,-86,-186,-183,-232,-207,-250,-240,-204,-191,-219,-137,-514,-517,-841,-824,-768,-780,-1242,-1188]} 1. e4 {[%emt 0:01:00]} c5 {[%emt 0:01:00]} 2. Nf3 {[%emt 0:00:00]} Nc6 {[%emt 0:00:30]} 3. Bb5 {[%emt 0:00:00]} e6 {[%emt 0:00:30]} 4. O-O {[%emt 0:01:30]} Nge7 {[%emt 0:00:00]} 5. Re1 {[%emt 0:03:30]} a6 {[%emt 0:06:00]} 6. Bxc6 {[%emt 0:00:30]} Nxc6 {[%emt 0:02:30]} 7. d3 {[%emt 0:00:30]} Be7 {[%emt 0:00:30]} 8. Nbd2 {[%emt 0:02:30]} O-O {[%emt 0:01:30]} 9. h3 {[%emt 0:01:30] Black is slightly better.} d5 {[%emt 0:01:30]} 10. exd5 {[%emt 0:01:30]} exd5 {[%emt 0:00:30]} 11. d4 {[%emt 0:00:30]} Qb6 {[%emt 0:06:30]} 12. dxc5 {[%emt 0:17:30]} Bxc5 {[%emt 0:01:30]} 13. Re2 {[%emt 0:03:30]} Bf5 {[%emt 0:00:00]} 14. Nb3 {[%emt 0:02:30]} d4 {[%emt 0:00:00]} 15. Nh4 {[%emt 0:05:30]} Be6 {[%emt 0:01:30]} 16. Qd3 {[%emt 0:01:30]} (16. Nxc5 $11 Qxc5 17. Re1) 16... Be7 {[%emt 0:04:30]} (16... Bxb3 $15 17. axb3 Nb4) 17. Qg3 {[%emt 0:04:30]} (17. Nf3 $1 $11) 17... Qb5 $17 {[%emt 0:03:30]} 18. Re4 {[%emt 0:08:30]} Qh5 {[%emt 0:00:30] Prevents Bh6. Hoping for ...Bxb3.} 19. Nf3 $1 {[%emt 0:04:30]} Bf5 {[%emt 0:03:30]} 20. Re2 {[%emt 0:04:30]} Rad8 $36 {[%emt 0:02:30][%mdl 2048] White is under pressure.} 21. Bf4 {[%emt 0:03:30][%cal Ob3a5]} (21. Na5 $5 Bf6 (21... Nxa5 22. Rxe7 Nc6 23. Rxb7 $11) 22. Nxc6 bxc6 23. Bf4 $17) 21... d3 {[%emt 0:03:30]} 22. cxd3 {[%emt 0:00:30]} Rxd3 {[%emt 0:00:30][%cal Of5h3]} 23. Re3 {[%emt 0:05:30]} ({White should try} 23. Rxe7 $1 $11 Nxe7 24. Bd6) 23... Rd5 {[%emt 0:00:00]} (23... Rfd8 $15) 24. Bg5 {[%emt 0:04:30]} (24. Rxe7 $11 {keeps the balance.} Nxe7 25. Bd6) 24... f6 {[%emt 0:02:00] Black is more active.} 25. Bf4 {[%emt 0:02:30][%cal Of3d4]} g5 {[%emt 0:00:30]} 26. Rae1 {[%emt 0:05:24]} (26. Bc7 $17 {was worth a try.}) 26... Bb4 $19 {[%emt 0:01:30][%cal Og8h8] A strong pair of Bishops.} 27. Rc1 {[%emt 0:00:06] [#]} (27. Rf1 $142) 27... Rc8 $1 {[%emt 0:01:30]} 28. a3 {[%emt 0:09:02]} Bf8 {[%emt 0:00:30]} 29. h4 {[%emt 0:01:25]} h6 {[%emt 0:00:30]} 30. Nfd2 {[%emt 0:00:48]} Rd7 {[%emt 0:01:30][%cal Oh5g6] ...Qg6! would now be deadly.} (30... Qxh4 31. Qxh4 gxh4 32. Rce1) 31. Nc4 $2 {[%emt 0:01:46][%mdl 8192] This move loses the game for White.} (31. Ne4 $17 {is tougher.} Rd1+ (31... Qxh4 $2 32. Qxh4 gxh4 33. Nxf6+ Kf7 34. Nxd7 $18) 32. Rxd1 Qxd1+ 33. Kh2 Bxe4 34. Rxe4) 31... Nd4 {[%emt 0:01:30] [#] aiming for ...Nxb3. Black is clearly winning.} (31... Qxh4 $2 {too greedy.} 32. Qxh4 gxh4 33. Nb6 $18) 32. hxg5 {[%emt 0:04:20]} (32. Nb6 $142 Rxc1+ 33. Nxc1) 32... hxg5 {[%emt 0:00:30][%cal Oc8c4] Threatens to win with ...Rxc4!} 33. Nxd4 {[%emt 0:00:30]} Rxd4 {[%emt 0:00:30]} 34. Bc7 {[%emt 0:00:30]} Rh4 {[%emt 0:00:30] Weighted Error Value: White=0.79/Black=0.17 (very precise) .  Loses game:     	White=1     	---        Mistake:       	White=7     	Black=2      Inaccurate:     	---       	Black=3      OK:         	White=12    	Black=10     Best:        	---       	Black=3      Strong:       	White=1     	---} 0-1

[Event "10th Cesme Open-A 2024"]
[Site "Cesme"]
[Date "2024.06.24"]
[Round "2"]
[White "Anacak, Hasan Gunes"]
[Black "Kilic, Eray"]
[Result "0-1"]
[ECO "B90"]
[WhiteElo "2095"]
[BlackElo "2443"]
[Annotator "TA"]
[PlyCount "72"]
[EventDate "2024.06.23"]
[EventType "swiss"]
[EventCountry "TUR"]
[SourceTitle "playchess.com"]
[Source "ChessBase"]
[SourceQuality "1"]
[TimeControl "5400+30"]

{[%evp 9,72,16,22,17,14,0,12,0,0,-13,0,0,42,-5,9,10,0,-17,-13,-18,-11,-10,81,78,74,75,56,65,104,22,112,-14,0,-12,-18,-13,0,0,0,0,0,0,-7,-94,-10,-5,-6,0,0,-25,-40,-170,-166,-308,-319,-313,-315,-299,-311,-345,-336,-393,-328,-1142,-1108]} 1. e4 {[%emt 0:01:00]} c5 {[%emt 0:01:00]} 2. Nf3 {[%emt 0:00:30]} d6 {[%emt 0:00:00]} 3. d4 {[%emt 0:00:30]} cxd4 {[%emt 0:00:00]} 4. Nxd4 {[%emt 0:00:30]} Nf6 {[%emt 0:00:30]} 5. Nc3 {[%emt 0:00:30]} a6 {[%emt 0:00:00]} 6. Qd3 {[%emt 0:01:30]} Nbd7 {[%emt 0:00:00]} 7. a4 {[%emt 0:04:30]} g6 {[%emt 0:03:30]} 8. Nb3 {[%emt 0:09:30] The position is equal.} Bg7 {[%emt 0:00:30]} 9. f4 {[%emt 0:05:30]} O-O {[%emt 0:01:30]} 10. Be2 {[%emt 0:01:30]} Qc7 {[%emt 0:03:30]} 11. a5 {[%emt 0:03:30]} (11. g4 $14) 11... b5 $11 {[%emt 0:04:30] Threatens to win with ...Bb7.} 12. axb6 {[%emt 0:03:30]} Nxb6 {[%emt 0:00:30]} 13. Na5 {[%emt 0:07:30]} Rd8 {[%emt 0:03:30]} 14. O-O {[%emt 0:12:30]} d5 {[%emt 0:16:30] ...dxe4 would now be deadly.} 15. e5 {[%emt 0:01:30]} Ng4 {[%emt 0:07:30]} (15... d4 $1 $11 16. Ne4 Nxe4 17. Qxe4 Bf5) 16. h3 $16 {[%emt 0:09:30]} Nh6 {[%emt 0:00:00]} (16... Qc5+ 17. Kh1 Nxe5 (17... Nf2+ $2 18. Rxf2 Qxf2 19. Be3 $18) 18. fxe5 Bxe5 19. Qf3) 17. g4 {[%emt 0:07:30]} f6 {[%emt 0:16:00]} 18. exf6 $1 {[%emt 0:06:30]} exf6 {[%emt 0:00:30] [#]} 19. Bf3 {[%emt 0:09:07]} (19. f5 $1 $16 {[%cal Rf5g6]}) 19... Be6 {[%emt 0:01:30]} (19... f5 $11) 20. Ne2 {[%emt 0:01:40]} (20. Re1 $16 Bf7 21. Rd1) 20... f5 $11 {[%emt 0:00:30]} 21. g5 {[%emt 0:02:27]} Nf7 {[%emt 0:00:30]} 22. h4 {[%emt 0:01:55]} Nc4 {[%emt 0:03:30]} 23. Nxc4 {[%emt 0:03:12]} dxc4 {[%emt 0:00:30]} 24. Qe3 {[%emt 0:02:15]} Bd5 {[%emt 0:00:30]} 25. Bxd5 {[%emt 0:01:46]} Rxd5 {[%emt 0:00:30]} 26. Bd2 {[%emt 0:00:42]} (26. h5 $11) 26... Qc6 {[%emt 0:01:30] Black is more active.} (26... Bxb2 $17 27. Ra2 Qd7) 27. Bc3 {[%emt 0:01:29]} Re8 $36 {[%emt 0:00:00][%mdl 2048] Black has the initiative.} 28. Qf2 {[%emt 0:00:00]} Bf8 {[%emt 0:00:00] ...Bc5 is the strong threat.} 29. Kh2 {[%emt 0:02:05]} Nd6 {[%emt 0:01:30]} 30. Nd4 {[%emt 0:00:17] [#] Now White is beyond hope.} ({White should play} 30. Ng3 $15) 30... Qd7 $1 $19 {[%emt 0:00:30] White must now prevent ...Ne4.} 31. Rxa6 {[%emt 0:01:26]} (31. Nf3 $142) 31... Ne4 {[%emt 0:00:30]} 32. Qg1 {[%emt 0:00:04]} Bc5 {[%emt 0:00:30]} 33. Rd1 {[%emt 0:00:27]} Rd8 {[%emt 0:01:30][%cal Od7c7]} 34. Qf1 {[%emt 0:00:34]} Bxd4 {[%emt 0:03:30]} 35. Qxc4 {[%emt 0:00:30]} Bxc3 {[%emt 0:00:00]} 36. Ra8 $2 {[%emt 0:00:27]} (36. Qxd5+ Qxd5 37. Rxd5 Rxd5 38. bxc3) 36... Bd2 {[%emt 0:00:00] Weighted Error Value: White=0.50/Black=0.20 (precise) .  Mistake:       	White=7     	Black=3      Inaccurate:     	---       	Black=2      OK:         	White=9     	Black=10     Best:        	White=3     	Black=6      Strong:       	White=1     	Black=1} ({Inferior is} 36... Bxb2 37. Rxd5 (37. Qxd5+ Qxd5 38. Rxd8+ Qxd8 $11) 37... Rxa8 38. Rxd7+ Kh8 39. Qf7 Nxg5 40. hxg5 h5 41. Qh7#) 0-1

[Event "10th Cesme Open-A 2024"]
[Site "Cesme"]
[Date "2024.06.24"]
[Round "2"]
[White "Kavri, Yusuf Eren"]
[Black "Haznedaroglu, Kivanc"]
[Result "1/2-1/2"]
[ECO "D37"]
[WhiteElo "2059"]
[BlackElo "2359"]
[Annotator "RC"]
[PlyCount "42"]
[EventDate "2024.06.23"]
[EventType "swiss"]
[EventCountry "TUR"]
[SourceTitle "playchess.com"]
[Source "ChessBase"]
[SourceQuality "1"]
[TimeControl "5400+30"]

1. d4 {[%emt 0:01:00]} Nf6 {[%emt 0:01:00]} 2. c4 {[%emt 0:00:30]} e6 {[%emt 0:00:00]} 3. Nc3 {[%emt 0:00:00]} Bb4 {[%emt 0:00:00]} 4. Qc2 {[%emt 0:00:00]} c5 {[%emt 0:00:00]} 5. dxc5 {[%emt 0:00:30]} O-O {[%emt 0:00:00]} 6. Nf3 {[%emt 0:00:30]} Bxc5 {[%emt 0:00:30]} 7. Bf4 {[%emt 0:03:30]} b6 {[%emt 0:03:30]} 8. e3 {[%emt 0:05:30]} Bb7 {[%emt 0:01:30]} 9. Be2 {[%emt 0:00:30]} d5 {[%emt 0:06:30]} 10. cxd5 {[%emt 0:06:30]} Nxd5 {[%emt 0:00:30]} 11. Nxd5 {[%emt 0:00:30]} Bxd5 {[%emt 0:00:30]} 12. O-O {[%emt 0:00:30]} Nd7 {[%emt 0:04:30]} 13. Rfd1 {[%emt 0:02:30]} Nf6 {[%emt 0:05:30]} 14. a3 {[%emt 0:07:30]} Qc8 {[%emt 0:08:30]} 15. b4 {[%emt 0:23:30]} Be7 {[%emt 0:03:30]} 16. Qb2 {[%emt 0:05:30]} Qb7 {[%emt 0:01:30]} 17. Rac1 {[%emt 0:00:30]} Rac8 {[%emt 0:00:00]} 18. h3 {[%emt 0:01:30]} h6 {[%emt 0:03:00]} 19. Be5 {[%emt 0:02:30]} Rxc1 {[%emt 0:02:30]} 20. Rxc1 {[%emt 0:00:30]} Rc8 {[%emt 0:00:00]} 21. Rc3 {[%emt 0:04:30]} Bf8 {[%emt 0:23:00]} 1/2-1/2

[Event "10th Cesme Open-A 2024"]
[Site "Cesme"]
[Date "2024.06.24"]
[Round "2"]
[White "Topuz, Mirac Melih"]
[Black "Erten, Kerem"]
[Result "0-1"]
[ECO "D85"]
[WhiteElo "2055"]
[BlackElo "2277"]
[Annotator "RC"]
[PlyCount "74"]
[EventDate "2024.06.23"]
[EventType "swiss"]
[EventCountry "TUR"]
[SourceTitle "playchess.com"]
[Source "ChessBase"]
[SourceQuality "1"]
[TimeControl "5400+30"]

1. d4 {[%emt 0:02:00]} Nf6 {[%emt 0:01:00]} 2. c4 {[%emt 0:00:30]} g6 {[%emt 0:00:00]} 3. Nc3 {[%emt 0:01:30]} d5 {[%emt 0:00:00]} 4. cxd5 {[%emt 0:01:30]} Nxd5 {[%emt 0:00:30]} 5. e4 {[%emt 0:00:30]} Nxc3 {[%emt 0:00:30]} 6. bxc3 {[%emt 0:00:30]} Bg7 {[%emt 0:00:30]} 7. Nf3 {[%emt 0:00:30]} c5 {[%emt 0:00:30]} 8. Bb5+ {[%emt 0:00:30]} Nc6 {[%emt 0:00:30]} 9. Bxc6+ {[%emt 0:00:30]} bxc6 {[%emt 0:00:30]} 10. O-O {[%emt 0:00:30]} O-O {[%emt 0:00:30]} 11. Ba3 {[%emt 0:00:30]} cxd4 {[%emt 0:00:30]} 12. cxd4 {[%emt 0:00:00]} Bg4 {[%emt 0:08:30]} 13. Bc5 {[%emt 0:00:00]} Qa5 {[%emt 0:05:30]} 14. h3 {[%emt 0:12:30]} Bxf3 {[%emt 0:01:30]} 15. Qxf3 {[%emt 0:01:30]} Rfe8 {[%emt 0:04:30]} 16. Qe3 {[%emt 0:35:30]} e5 {[%emt 0:06:30]} 17. d5 {[%emt 0:00:30]} cxd5 {[%emt 0:00:30]} 18. exd5 {[%emt 0:00:30]} e4 {[%emt 0:08:30]} 19. Rab1 {[%emt 0:03:30]} Rad8 {[%emt 0:04:30]} 20. d6 {[%emt 0:11:30]} Qxa2 {[%emt 0:02:30]} 21. Rfd1 {[%emt 0:09:47]} Rd7 {[%emt 0:05:30]} 22. Rb4 {[%emt 0:01:33]} Qc2 {[%emt 0:06:30]} 23. Rd2 {[%emt 0:10:21]} Qc1+ {[%emt 0:05:30]} 24. Kh2 {[%emt 0:00:01]} Rc8 {[%emt 0:07:30]} 25. Bxa7 {[%emt 0:06:14]} Rxa7 {[%emt 0:06:30]} 26. d7 {[%emt 0:00:01]} Rd8 {[%emt 0:02:30]} 27. Rxe4 {[%emt 0:00:04]} Raa8 {[%emt 0:02:47]} 28. Re8+ {[%emt 0:00:30]} Bf8 {[%emt 0:00:13]} 29. Re4 {[%emt 0:01:28]} Qc7+ {[%emt 0:00:30]} 30. g3 {[%emt 0:00:19]} Rxd7 {[%emt 0:00:35]} 31. Re2 {[%emt 0:00:28]} Rdd8 {[%emt 0:00:25]} 32. h4 {[%emt 0:00:13]} h5 {[%emt 0:00:42]} 33. Qg5 {[%emt 0:00:20]} Ra5 {[%emt 0:00:26]} 34. Qe3 {[%emt 0:00:53]} Qc6 {[%emt 0:00:32]} 35. Qb3 {[%emt 0:00:20]} Ra1 {[%emt 0:01:11]} 36. Qf3 {[%emt 0:00:57]} Rdd1 {[%emt 0:00:44]} 37. R2e3 {[%emt 0:00:12]} Rh1+ {[%emt 0:00:30]} 0-1

[Event "10th Cesme Open-A 2024"]
[Site "Cesme"]
[Date "2024.06.24"]
[Round "2"]
[White "Zerey, Demhat"]
[Black "Yurtseven, Melih"]
[Result "1/2-1/2"]
[ECO "D02"]
[WhiteElo "2038"]
[BlackElo "2333"]
[Annotator "RC"]
[PlyCount "79"]
[EventDate "2024.06.23"]
[EventType "swiss"]
[EventCountry "TUR"]
[SourceTitle "playchess.com"]
[Source "ChessBase"]
[SourceQuality "1"]
[TimeControl "5400+30"]

1. d4 {[%emt 0:01:00]} Nf6 {[%emt 0:02:00]} 2. Bf4 {[%emt 0:00:00]} d5 {[%emt 0:02:30]} 3. e3 {[%emt 0:00:00]} g6 {[%emt 0:00:30]} 4. Nf3 {[%emt 0:01:30]} Bg7 {[%emt 0:00:30]} 5. Be2 {[%emt 0:02:30]} O-O {[%emt 0:00:30]} 6. h3 {[%emt 0:00:30]} b6 {[%emt 0:01:30]} 7. O-O {[%emt 0:01:30]} Bb7 {[%emt 0:00:30]} 8. a4 {[%emt 0:05:30]} c5 {[%emt 0:02:30]} 9. Nbd2 {[%emt 0:05:30]} Nc6 {[%emt 0:02:30]} 10. Ne5 {[%emt 0:07:30]} Nd7 {[%emt 0:03:30]} 11. Nxc6 {[%emt 0:01:30]} Bxc6 {[%emt 0:00:30]} 12. c3 {[%emt 0:01:30]} e5 {[%emt 0:00:30]} 13. dxe5 {[%emt 0:00:30]} Nxe5 {[%emt 0:00:30]} 14. Nf3 {[%emt 0:01:30]} Nc4 {[%emt 0:00:30]} 15. Qc2 {[%emt 0:05:30]} Qe7 {[%emt 0:01:30]} 16. Rfd1 {[%emt 0:04:30]} Rfe8 {[%emt 0:00:30]} 17. b3 {[%emt 0:03:30]} Nd6 {[%emt 0:03:30]} 18. Bxd6 {[%emt 0:01:30]} Qxd6 {[%emt 0:00:30]} 19. Bb5 {[%emt 0:00:30]} a6 {[%emt 0:06:30]} 20. Bxc6 {[%emt 0:00:30]} Qxc6 {[%emt 0:00:00]} 21. Rd2 {[%emt 0:03:30]} Rad8 {[%emt 0:19:00]} 22. Rad1 {[%emt 0:00:30]} Rd7 {[%emt 0:02:30]} 23. c4 {[%emt 0:09:30]} Red8 {[%emt 0:03:30]} 24. cxd5 {[%emt 0:01:30]} Rxd5 {[%emt 0:01:30]} 25. Rxd5 {[%emt 0:02:30]} Rxd5 {[%emt 0:00:00]} 26. Rxd5 {[%emt 0:00:30]} Qxd5 {[%emt 0:00:00]} 27. Qc4 {[%emt 0:00:00]} Qd1+ {[%emt 0:05:30]} 28. Kh2 {[%emt 0:00:00]} Qd6+ {[%emt 0:00:30]} 29. Kg1 {[%emt 0:00:30]} h6 {[%emt 0:02:30]} 30. h4 {[%emt 0:02:30]} Qd1+ {[%emt 0:01:30]} 31. Kh2 {[%emt 0:00:30]} Qd6+ {[%emt 0:00:30]} 32. Kg1 {[%emt 0:00:30]} Bf8 {[%emt 0:03:30]} 33. g3 {[%emt 0:07:30]} Qc6 {[%emt 0:09:30]} 34. Ne5 {[%emt 0:01:30]} Qf6 {[%emt 0:00:30]} 35. Nd3 {[%emt 0:02:30]} Qf3 {[%emt 0:01:30]} 36. Ne5 {[%emt 0:00:30]} Qf5 {[%emt 0:05:30]} 37. Nd3 {[%emt 0:01:30]} Qf3 {[%emt 0:01:48]} 38. Ne5 {[%emt 0:01:30]} Qf5 {[%emt 0:01:31]} 39. Nd3 {[%emt 0:00:30]} Qf3 {[%emt 0:00:07]} 40. Ne5 {[%emt 0:00:00]} 1/2-1/2

[Event "10th Cesme Open-A 2024"]
[Site "Cesme"]
[Date "2024.06.24"]
[Round "2"]
[White "Yildiz, Serdar Murat"]
[Black "Cilek, Bora"]
[Result "1/2-1/2"]
[ECO "C44"]
[WhiteElo "2026"]
[BlackElo "2242"]
[Annotator "RC"]
[PlyCount "57"]
[EventDate "2024.06.23"]
[EventType "swiss"]
[EventCountry "TUR"]
[SourceTitle "playchess.com"]
[Source "ChessBase"]
[SourceQuality "1"]
[TimeControl "5400+30"]

1. e4 {[%emt 0:01:00]} e5 {[%emt 0:09:00]} 2. Nf3 {[%emt 0:00:30]} Nc6 {[%emt 0:00:30]} 3. Bc4 {[%emt 0:00:00]} Bc5 {[%emt 0:00:30]} 4. d4 {[%emt 0:00:00]} exd4 {[%emt 0:00:30]} 5. Ng5 {[%emt 0:00:00]} Nh6 {[%emt 0:00:30]} 6. Nxf7 {[%emt 0:00:00]} Nxf7 {[%emt 0:00:30]} 7. Bxf7+ {[%emt 0:00:30]} Kxf7 {[%emt 0:00:30]} 8. Qh5+ {[%emt 0:00:30]} g6 {[%emt 0:00:30]} 9. Qxc5 {[%emt 0:00:30]} d5 {[%emt 0:00:30]} 10. O-O {[%emt 0:00:00]} dxe4 {[%emt 0:00:00]} 11. c3 {[%emt 0:00:00]} Re8 {[%emt 0:08:00]} 12. Bf4 {[%emt 0:12:30]} Be6 {[%emt 0:19:30]} 13. Rd1 {[%emt 0:28:30]} d3 {[%emt 0:16:30]} 14. Nd2 {[%emt 0:05:30]} Qd5 {[%emt 0:04:30]} 15. Qxd5 {[%emt 0:01:30]} Bxd5 {[%emt 0:00:00]} 16. Bxc7 {[%emt 0:09:30]} e3 {[%emt 0:02:00]} 17. fxe3 {[%emt 0:00:30]} Rxe3 {[%emt 0:00:30]} 18. c4 {[%emt 0:01:30]} Be6 {[%emt 0:00:00]} 19. Nf1 {[%emt 0:03:30]} Re2 {[%emt 0:02:00]} 20. Rxd3 {[%emt 0:00:30]} Rc8 {[%emt 0:04:30]} 21. Bg3 {[%emt 0:06:30]} Bxc4 {[%emt 0:04:30]} 22. Rd7+ {[%emt 0:01:30]} Kg8 {[%emt 0:00:30]} 23. b3 {[%emt 0:10:44]} Be6 {[%emt 0:00:30]} 24. Rd6 {[%emt 0:01:49]} Bf7 {[%emt 0:02:30]} 25. Rd7 {[%emt 0:01:58]} Nb4 {[%emt 0:04:30]} 26. Re1 {[%emt 0:02:41]} Rce8 {[%emt 0:05:58]} 27. Rxb7 {[%emt 0:03:08]} Nxa2 {[%emt 0:06:54]} 28. Rxe2 {[%emt 0:01:27]} Rxe2 {[%emt 0:00:03]} 29. Rxa7 {[%emt 0:01:20]} 1/2-1/2